[Event "Baltic Zonal II Stage 2018"]
[Site "Palanga"]
[Date "2018.06.20"]
[Round "9"]
[White "Chukavin, Kirill"]
[Black "Bernotas, Arturs"]
[Result "1/2-1/2"]
[ECO "B90"]
[WhiteElo "2256"]
[BlackElo "2407"]
[Annotator "RC"]
[PlyCount "132"]
[EventDate "2018.??.??"]
[EventType "swiss"]
[EventCountry "LTU"]
[SourceTitle "playchess.com"]
[Source "ChessBase"]
[SourceQuality "1"]
[TimeControl "5400+30"]

1. e4 {[%emt 0:00:00]} c5 {[%emt 0:00:09]} 2. Nf3 {[%emt 0:00:03]} d6 {[%emt 0:00:17]} 3. d4 {[%emt 0:00:43]} cxd4 {[%emt 0:00:12]} 4. Nxd4 {[%emt 0:00:03]} Nf6 {[%emt 0:00:11]} 5. Nc3 {[%emt 0:00:37]} a6 {[%emt 0:00:20]} 6. h3 {[%emt 0:01:27]} b5 {[%emt 0:00:50]} 7. g4 {[%emt 0:04:53]} Bb7 {[%emt 0:01:23]} 8. Bg2 {[%emt 0:00:45]} e6 {[%emt 0:00:39]} 9. O-O {[%emt 0:05:43]} Nfd7 {[%emt 0:00:34]} 10. a4 {[%emt 0:04:59]} b4 {[%emt 0:02:59]} 11. Na2 {[%emt 0:04:11]} Nc5 {[%emt 0:02:26]} 12. Re1 {[%emt 0:09:58]} e5 {[%emt 0:05:39]} 13. Nf5 {[%emt 0:04:44]} Nc6 {[%emt 0:01:29]} 14. c3 {[%emt 0:03:18]} bxc3 {[%emt 0:05:29]} 15. Nxc3 {[%emt 0:02:25]} g6 {[%emt 0:04:37]} 16. Ng3 {[%emt 0:03:48]} Be7 {[%emt 0:07:17]} 17. Nd5 {[%emt 0:03:22]} O-O {[%emt 0:04:12]} 18. Bh6 {[%emt 0:04:16]} Re8 {[%emt 0:01:36]} 19. b4 {[%emt 0:02:17]} Ne6 {[%emt 0:02:25]} 20. Nxe7+ {[%emt 0:00:58]} Qxe7 {[%emt 0:00:29]} 21. Qd2 {[%emt 0:08:41]} Ncd4 {[%emt 0:05:49]} 22. Ra3 {[%emt 0:00:36]} Rec8 {[%emt 0:04:36]} 23. Rc1 {[%emt 0:00:59]} Qd7 {[%emt 0:09:38]} 24. a5 {[%emt 0:07:22]} Rxc1+ {[%emt 0:10:48]} 25. Qxc1 {[%emt 0:00:06]} Rc8 {[%emt 0:00:34]} 26. Rc3 {[%emt 0:01:07]} Rxc3 {[%emt 0:00:32]} 27. Qxc3 {[%emt 0:00:06]} Qc6 {[%emt 0:00:08]} 28. Qd3 {[%emt 0:06:35]} Qb5 {[%emt 0:16:31]} 29. Qc3 {[%emt 0:02:09]} Qc6 {[%emt 0:00:51]} 30. Qd3 {[%emt 0:00:30]} Qa4 {[%emt 0:00:43]} 31. Qd2 {[%emt 0:06:38]} Qc2 {[%emt 0:03:51]} 32. h4 {[%emt 0:05:27]} Bc6 {[%emt 0:02:14]} 33. Qxc2 {[%emt 0:01:28]} Nxc2 {[%emt 0:00:05]} 34. Bf1 {[%emt 0:00:11]} Nc7 {[%emt 0:00:28]} 35. Bd2 {[%emt 0:01:44]} Bb5 {[%emt 0:00:30]} 36. Ne2 {[%emt 0:01:23]} Kf8 {[%emt 0:01:34]} 37. f3 {[%emt 0:01:17]} Ke7 {[%emt 0:00:22]} 38. Kf2 {[%emt 0:00:48]} Kd7 {[%emt 0:00:21]} 39. g5 {[%emt 0:01:08]} Kc6 {[%emt 0:01:28]} 40. f4 {[%emt 0:01:42]} Ne6 {[%emt 0:01:41]} 41. f5 {[%emt 0:00:34]} Ned4 {[%emt 0:00:29]} 42. Nxd4+ {[%emt 0:00:18]} Nxd4 {[%emt 0:00:06]} 43. Bh3 {[%emt 0:00:52]} Bc4 {[%emt 0:01:50]} 44. Bc3 {[%emt 0:00:58]} Nb5 {[%emt 0:01:57]} 45. Bb2 {[%emt 0:00:19]} Nc7 {[%emt 0:00:13]} 46. Bc3 {[%emt 0:00:23]} Nb5 {[%emt 0:01:16]} 47. Bb2 {[%emt 0:00:02]} d5 {[%emt 0:01:24]} 48. Bxe5 {[%emt 0:00:43]} dxe4 {[%emt 0:00:06]} 49. fxg6 {[%emt 0:00:30]} hxg6 {[%emt 0:00:16]} 50. Ke3 {[%emt 0:00:41]} Kd5 {[%emt 0:00:11]} 51. Bb2 {[%emt 0:00:26]} Nd6 {[%emt 0:00:46]} 52. Bd7 {[%emt 0:01:01]} Bb5 {[%emt 0:00:07]} 53. Bxb5 {[%emt 0:00:29]} Nxb5 {[%emt 0:00:02]} 54. Kf4 {[%emt 0:00:27]} Nd4 {[%emt 0:01:09]} 55. Bxd4 {[%emt 0:00:36]} Kxd4 {[%emt 0:00:01]} 56. b5 {[%emt 0:00:07]} e3 {[%emt 0:00:20]} 57. Kf3 {[%emt 0:01:02]} Kd3 {[%emt 0:00:41]} 58. b6 {[%emt 0:00:09]} e2 {[%emt 0:00:04]} 59. b7 {[%emt 0:00:03]} e1=Q {[%emt 0:00:06]} 60. b8=Q {[%emt 0:00:06]} Qh1+ {[%emt 0:02:15]} 61. Kg3 {[%emt 0:00:50]} Qg1+ {[%emt 0:00:09]} 62. Kh3 {[%emt 0:00:24]} Qe3+ {[%emt 0:00:18]} 63. Kg4 {[%emt 0:00:42]} Qe6+ {[%emt 0:01:02]} 64. Kg3 {[%emt 0:00:30]} Qe3+ {[%emt 0:00:08]} 65. Kg4 {[%emt 0:00:18]} Qd4+ {[%emt 0:00:26]} 66. Kg3 {[%emt 0:00:17]} Qe3+ {[%emt 0:01:31]} 1/2-1/2